[Event "Late-Titled-Tuesday-Blitz-August-29-2023"]
[Site "Chess.com"]
[Date "2023.08.29"]
[Round "6"]
[White "ExchangeAB"]
[Black "Leo_C"]
[Result "1/2-1/2"]
[WhiteElo "2436"]
[BlackElo "2567"]
[TimeControl "180+1"]
[EndTime "15:05:58 PDT"]
[Termination "Game drawn - insufficient material"]

1. d4 {[%clk 0:03:00.9]} 1... Nf6 {[%clk 0:02:59.8]} 2. Nc3 {[%clk 0:03:01]}
2... d6 {[%clk 0:02:59.8]} 3. e4 {[%clk 0:03:00.9]} 3... g6 {[%clk 0:02:58.9]}
4. Nf3 {[%clk 0:03:01]} 4... Bg7 {[%clk 0:02:59.2]} 5. Be3 {[%clk 0:03:01.4]}
5... c6 {[%clk 0:02:57.7]} 6. h3 {[%clk 0:03:01.8]} 6... b5 {[%clk 0:02:57.1]}
7. a3 {[%clk 0:03:01]} 7... Qc7 {[%clk 0:02:29.6]} 8. e5 {[%clk 0:02:56]} 8...
Nfd7 {[%clk 0:02:25.1]} 9. e6 {[%clk 0:02:37.1]} 9... fxe6 {[%clk 0:02:23.4]}
10. Ng5 {[%clk 0:02:37.4]} 10... Nf6 {[%clk 0:02:19.6]} 11. Qf3 {[%clk
0:02:21.5]} 11... h6 {[%clk 0:02:16.3]} 12. Nge4 {[%clk 0:02:20.9]} 12... Nbd7
{[%clk 0:02:08.8]} 13. Nxb5 {[%clk 0:02:12.8]} 13... Qa5+ {[%clk 0:01:42.7]} 14.
Bd2 {[%clk 0:02:08.1]} 14... Qb6 {[%clk 0:01:39.7]} 15. Nexd6+ {[%clk
0:01:46.4]} 15... exd6 {[%clk 0:01:37.8]} 16. Nxd6+ {[%clk 0:01:47.3]} 16... Kf8
{[%clk 0:01:30.2]} 17. Bb4 {[%clk 0:01:45.9]} 17... Kg8 {[%clk 0:01:28.6]} 18.
Bc4 {[%clk 0:01:31.3]} 18... Nf8 {[%clk 0:01:23.3]} 19. c3 {[%clk 0:01:22]}
19... Qc7 {[%clk 0:01:11.2]} 20. O-O-O {[%clk 0:01:18]} 20... a5 {[%clk
0:01:09.3]} 21. Bc5 {[%clk 0:01:17.8]} 21... Ba6 {[%clk 0:01:05.5]} 22. Bxa6
{[%clk 0:01:13.6]} 22... Rxa6 {[%clk 0:01:06.4]} 23. Rhe1 {[%clk 0:01:12.6]}
23... Ra8 {[%clk 0:01:03.2]} 24. Ne4 {[%clk 0:01:12.3]} 24... Nxe4 {[%clk
0:00:57.4]} 25. Qxe4 {[%clk 0:01:13.2]} 25... Kh7 {[%clk 0:00:56.5]} 26. h4
{[%clk 0:01:11.3]} 26... Rc8 {[%clk 0:00:49.8]} 27. h5 {[%clk 0:01:10.8]} 27...
Qf7 {[%clk 0:00:49.9]} 28. Bxf8 {[%clk 0:01:04.7]} 28... Rhxf8 {[%clk
0:00:48.6]} 29. hxg6+ {[%clk 0:01:05.1]} 29... Qxg6 {[%clk 0:00:48.4]} 30. Qxg6+
{[%clk 0:01:06]} 30... Kxg6 {[%clk 0:00:49]} 31. Rxe6+ {[%clk 0:01:06.5]} 31...
Kf7 {[%clk 0:00:46.5]} 32. Rde1 {[%clk 0:01:05.1]} 32... Rfe8 {[%clk 0:00:32.8]}
33. Rxe8 {[%clk 0:01:05.2]} 33... Rxe8 {[%clk 0:00:33.3]} 34. Rxe8 {[%clk
0:01:05.5]} 34... Kxe8 {[%clk 0:00:34.2]} 35. b4 {[%clk 0:01:05]} 35... a4
{[%clk 0:00:31.8]} 36. Kd2 {[%clk 0:01:04.1]} 36... Kd7 {[%clk 0:00:31.5]} 37.
Kd3 {[%clk 0:01:02.8]} 37... Ke6 {[%clk 0:00:27.9]} 38. Ke4 {[%clk 0:01:01.1]}
38... Bf8 {[%clk 0:00:25.4]} 39. f4 {[%clk 0:01:00.5]} 39... h5 {[%clk
0:00:20.9]} 40. g3 {[%clk 0:00:46.1]} 40... Bd6 {[%clk 0:00:20.2]} 41. Kf3
{[%clk 0:00:36.8]} 41... Kf5 {[%clk 0:00:10.5]} 42. Ke3 {[%clk 0:00:30.7]} 42...
Bf8 {[%clk 0:00:06.6]} 43. Kf3 {[%clk 0:00:30.7]} 43... Be7 {[%clk 0:00:06.9]}
44. Ke3 {[%clk 0:00:30.2]} 44... h4 {[%clk 0:00:05.7]} 45. gxh4 {[%clk
0:00:30.2]} 45... Bxh4 {[%clk 0:00:06.6]} 46. c4 {[%clk 0:00:26.7]} 46... Bg3
{[%clk 0:00:05.7]} 47. b5 {[%clk 0:00:23.2]} 47... Bxf4+ {[%clk 0:00:04.4]} 48.
Kd3 {[%clk 0:00:23.7]} 48... cxb5 {[%clk 0:00:03.3]} 49. cxb5 {[%clk 0:00:24.6]}
49... Bd6 {[%clk 0:00:03.2]} 50. b6 {[%clk 0:00:22.8]} 50... Bxa3 {[%clk
0:00:03.3]} 51. Kc3 {[%clk 0:00:20.4]} 51... Ke6 {[%clk 0:00:02.5]} 52. b7
{[%clk 0:00:20.7]} 52... Bd6 {[%clk 0:00:02.5]} 53. b8=Q {[%clk 0:00:20.7]}
53... Bxb8 {[%clk 0:00:02.4]} 54. Kb4 {[%clk 0:00:21.1]} 54... Kd5 {[%clk
0:00:02.8]} 55. Kxa4 {[%clk 0:00:21.3]} 55... Kxd4 {[%clk 0:00:03.7]} 1/2-1/2

[Event "Late-Titled-Tuesday-Blitz-August-29-2023"]
[Site "Chess.com"]
[Date "2023.08.29"]
[Round "6"]
[White "Anton_Demchenko"]
[Black "karinachess1"]
[Result "1-0"]
[WhiteElo "2919"]
[BlackElo "2608"]
[TimeControl "180+1"]
[EndTime "15:06:01 PDT"]
[Termination "Anton_Demchenko won by resignation"]

1. e4 {[%clk 0:02:54.5]} 1... e5 {[%clk 0:02:59.6]} 2. Nf3 {[%clk 0:02:54.5]}
2... Nc6 {[%clk 0:02:59.8]} 3. Bc4 {[%clk 0:02:54.7]} 3... Nf6 {[%clk
0:02:58.8]} 4. d3 {[%clk 0:02:55.4]} 4... h6 {[%clk 0:02:58.8]} 5. Nc3 {[%clk
0:02:54.8]} 5... d6 {[%clk 0:02:58.9]} 6. a4 {[%clk 0:02:52.7]} 6... g5 {[%clk
0:02:57.4]} 7. h4 {[%clk 0:02:51.2]} 7... g4 {[%clk 0:02:51.3]} 8. Nh2 {[%clk
0:02:51.9]} 8... Bg7 {[%clk 0:02:34.5]} 9. Nf1 {[%clk 0:02:51.4]} 9... Be6
{[%clk 0:02:27.7]} 10. Ng3 {[%clk 0:02:45.2]} 10... Qd7 {[%clk 0:02:20.3]} 11.
a5 {[%clk 0:02:21.8]} 11... a6 {[%clk 0:02:14.9]} 12. Be3 {[%clk 0:01:55.3]}
12... O-O-O {[%clk 0:01:59.9]} 13. O-O {[%clk 0:01:55.3]} 13... Ne7 {[%clk
0:01:27.1]} 14. Bxe6 {[%clk 0:01:38.4]} 14... Qxe6 {[%clk 0:01:14.3]} 15. b4
{[%clk 0:01:19.8]} 15... d5 {[%clk 0:01:14.2]} 16. Bd2 {[%clk 0:00:29.9]} 16...
d4 {[%clk 0:00:38.5]} 17. Na4 {[%clk 0:00:29.3]} 17... Nd7 {[%clk 0:00:33.5]}
18. Rb1 {[%clk 0:00:27.1]} 18... c6 {[%clk 0:00:33.4]} 19. Nc5 {[%clk
0:00:26.1]} 19... Nxc5 {[%clk 0:00:32.4]} 20. bxc5 {[%clk 0:00:27]} 20... h5
{[%clk 0:00:30.2]} 21. f4 {[%clk 0:00:21]} 21... gxf3 {[%clk 0:00:24.3]} 22.
Qxf3 {[%clk 0:00:20.7]} 22... f6 {[%clk 0:00:23.8]} 23. Nxh5 {[%clk 0:00:19.2]}
23... Rdg8 {[%clk 0:00:20.7]} 24. Nxf6 {[%clk 0:00:13]} 24... Bxf6 {[%clk
0:00:20.4]} 25. Qxf6 {[%clk 0:00:13.7]} 25... Qg4 {[%clk 0:00:19.1]} 26. Rf2
{[%clk 0:00:09]} 26... Ng6 {[%clk 0:00:15.3]} 27. Qf7 {[%clk 0:00:04.8]} 27...
Qd7 {[%clk 0:00:08.3]} 28. Qxd7+ {[%clk 0:00:04.8]} 28... Kxd7 {[%clk
0:00:09.2]} 29. Rxb7+ {[%clk 0:00:05.1]} 29... Ke6 {[%clk 0:00:09.7]} 30. Rc7
{[%clk 0:00:04.4]} 30... Rc8 {[%clk 0:00:09.5]} 31. Rxc8 {[%clk 0:00:03.7]}
31... Rxc8 {[%clk 0:00:10.4]} 32. Bg5 {[%clk 0:00:04.1]} 32... Nf8 {[%clk
0:00:07.3]} 33. Rf6+ {[%clk 0:00:04.4]} 33... Kd7 {[%clk 0:00:07.3]} 34. h5
{[%clk 0:00:03.8]} 34... Rb8 {[%clk 0:00:06.8]} 35. h6 {[%clk 0:00:03.8]} 35...
Ke8 {[%clk 0:00:04.7]} 36. Rf5 {[%clk 0:00:03.5]} 36... Nh7 {[%clk 0:00:04.6]}
37. Rxe5+ {[%clk 0:00:03.1]} 37... Kf7 {[%clk 0:00:04.7]} 38. Rf5+ {[%clk
0:00:04]} 38... Kg6 {[%clk 0:00:04.5]} 39. Bf4 {[%clk 0:00:04.9]} 39... Rb1+
{[%clk 0:00:03.9]} 40. Kh2 {[%clk 0:00:05.5]} 40... Rb2 {[%clk 0:00:04]} 41. Re5
{[%clk 0:00:05.5]} 41... Rxc2 {[%clk 0:00:04.3]} 42. Re6+ {[%clk 0:00:06]} 42...
Kh5 {[%clk 0:00:04.8]} 43. Rxc6 {[%clk 0:00:06.4]} 43... Rc3 {[%clk 0:00:04]}
44. Rc7 {[%clk 0:00:06.1]} 44... Kg6 {[%clk 0:00:04.6]} 45. Rg7+ {[%clk
0:00:05.7]} 45... Kh5 {[%clk 0:00:05.2]} 46. Rxh7 {[%clk 0:00:06.6]} 46... Rxd3
{[%clk 0:00:05.5]} 47. Rd7 {[%clk 0:00:07]} 1-0

[Event "Late-Titled-Tuesday-Blitz-August-29-2023"]
[Site "Chess.com"]
[Date "2023.08.29"]
[Round "6"]
[White "WildBizon"]
[Black "subham777"]
[Result "1-0"]
[WhiteElo "2713"]
[BlackElo "2524"]
[TimeControl "180+1"]
[EndTime "15:06:04 PDT"]
[Termination "WildBizon won on time"]

1. b3 {[%clk 0:02:58.2]} 1... d5 {[%clk 0:02:58.3]} 2. Bb2 {[%clk 0:02:58.4]}
2... Nf6 {[%clk 0:02:57.9]} 3. e3 {[%clk 0:02:57.6]} 3... e6 {[%clk 0:02:57.9]}
4. g4 {[%clk 0:02:57.4]} 4... h6 {[%clk 0:02:52.1]} 5. Bg2 {[%clk 0:02:57.2]}
5... Be7 {[%clk 0:02:51.5]} 6. h4 {[%clk 0:02:56.8]} 6... c5 {[%clk 0:02:49.5]}
7. g5 {[%clk 0:02:55.1]} 7... hxg5 {[%clk 0:02:47.2]} 8. hxg5 {[%clk 0:02:56]}
8... Rxh1 {[%clk 0:02:46.6]} 9. Bxh1 {[%clk 0:02:56.4]} 9... Nfd7 {[%clk
0:02:39.7]} 10. f4 {[%clk 0:02:43.7]} 10... g6 {[%clk 0:02:38.2]} 11. Nc3 {[%clk
0:02:35]} 11... Nc6 {[%clk 0:02:37.9]} 12. Qe2 {[%clk 0:02:31.9]} 12... a6
{[%clk 0:02:33]} 13. a4 {[%clk 0:02:27.3]} 13... Qa5 {[%clk 0:02:23.7]} 14. Nh3
{[%clk 0:02:17.4]} 14... Nb4 {[%clk 0:02:22.1]} 15. Kd1 {[%clk 0:02:11.7]} 15...
d4 {[%clk 0:02:05.2]} 16. Ne4 {[%clk 0:02:04.3]} 16... e5 {[%clk 0:01:45.9]} 17.
Nhf2 {[%clk 0:01:59.6]} 17... Qc7 {[%clk 0:01:28.1]} 18. fxe5 {[%clk 0:01:38.9]}
18... Nxe5 {[%clk 0:01:07.1]} 19. c3 {[%clk 0:01:15.6]} 19... d3 {[%clk
0:00:55.9]} 20. Qf1 {[%clk 0:01:15.7]} 20... Nc2 {[%clk 0:00:54.8]} 21. Rc1
{[%clk 0:01:14.4]} 21... c4 {[%clk 0:00:48.6]} 22. Bg2 {[%clk 0:00:26.3]} 22...
Ng4 {[%clk 0:00:25.4]} 23. bxc4 {[%clk 0:00:21.1]} 23... Ngxe3+ {[%clk
0:00:21.7]} 24. dxe3 {[%clk 0:00:20.3]} 24... Nxe3+ {[%clk 0:00:22.6]} 25. Kd2
{[%clk 0:00:21.1]} 25... Nxf1+ {[%clk 0:00:22.6]} 26. Rxf1 {[%clk 0:00:20.7]}
26... Qf4+ {[%clk 0:00:16.7]} 27. Kxd3 {[%clk 0:00:20.9]} 27... Bf5 {[%clk
0:00:16.8]} 28. Ke2 {[%clk 0:00:15.8]} 28... O-O-O {[%clk 0:00:13.9]} 29. Bc1
{[%clk 0:00:16.2]} 29... Bg4+ {[%clk 0:00:09.7]} 30. Nxg4 {[%clk 0:00:15.8]}
30... Qxg4+ {[%clk 0:00:10.6]} 31. Bf3 {[%clk 0:00:16.4]} 31... Qh4 {[%clk
0:00:07.8]} 32. Rh1 {[%clk 0:00:15.5]} 32... Qxh1 {[%clk 0:00:05.4]} 33. Bxh1
{[%clk 0:00:15.7]} 33... Rh8 {[%clk 0:00:05.5]} 34. Bf3 {[%clk 0:00:15.3]} 34...
Rh2+ {[%clk 0:00:04.7]} 35. Kd3 {[%clk 0:00:15.2]} 35... Ra2 {[%clk 0:00:04]}
36. Bd1 {[%clk 0:00:11.4]} 36... Kc7 {[%clk 0:00:03.1]} 37. c5 {[%clk
0:00:10.9]} 37... Kc6 {[%clk 0:00:02.7]} 38. Bb3 {[%clk 0:00:11.2]} 38... Rh2
{[%clk 0:00:02.7]} 39. Bxf7 {[%clk 0:00:10.5]} 39... Rh3+ {[%clk 0:00:02.5]} 40.
Kd4 {[%clk 0:00:08.8]} 40... Rh2 {[%clk 0:00:02.2]} 41. Bxg6 {[%clk 0:00:08.3]}
41... Rh1 {[%clk 0:00:02.7]} 42. Be8+ {[%clk 0:00:08.5]} 42... Kc7 {[%clk
0:00:03.2]} 43. Bf4+ {[%clk 0:00:08.7]} 43... Kd8 {[%clk 0:00:03.1]} 44. Bf7
{[%clk 0:00:09]} 44... Re1 {[%clk 0:00:02.2]} 45. g6 {[%clk 0:00:08.5]} 45...
Rd1+ {[%clk 0:00:01]} 46. Ke5 {[%clk 0:00:08.6]} 46... Re1 {[%clk 0:00:01.9]}
47. Kf5 {[%clk 0:00:09]} 47... Bf8 {[%clk 0:00:02.1]} 48. Be5 {[%clk 0:00:09]}
48... Bg7 {[%clk 0:00:03]} 49. Bxg7 {[%clk 0:00:09.3]} 49... Ke7 {[%clk
0:00:03.4]} 50. Bf6+ {[%clk 0:00:09.4]} 1-0

[Event "Late-Titled-Tuesday-Blitz-August-29-2023"]
[Site "Chess.com"]
[Date "2023.08.29"]
[Round "6"]
[White "rasmussvane"]
[Black "KaydenTroffChess"]
[Result "1/2-1/2"]
[WhiteElo "2971"]
[BlackElo "2802"]
[TimeControl "180+1"]
[EndTime "15:06:09 PDT"]
[Termination "Game drawn - insufficient material"]

1. Nf3 {[%clk 0:03:00.9]} 1... Nf6 {[%clk 0:02:59.5]} 2. g3 {[%clk 0:03:00.7]}
2... g6 {[%clk 0:02:59.6]} 3. Bg2 {[%clk 0:03:01.3]} 3... Bg7 {[%clk 0:03:00]}
4. O-O {[%clk 0:03:02]} 4... O-O {[%clk 0:03:00.4]} 5. d4 {[%clk 0:03:02.5]}
5... d5 {[%clk 0:03:00.4]} 6. c4 {[%clk 0:03:02.6]} 6... c6 {[%clk 0:03:00.7]}
7. Qb3 {[%clk 0:03:03]} 7... dxc4 {[%clk 0:02:53.6]} 8. Qxc4 {[%clk 0:03:03.9]}
8... Bf5 {[%clk 0:02:53.8]} 9. Nc3 {[%clk 0:03:03.7]} 9... Nbd7 {[%clk
0:02:52.3]} 10. Re1 {[%clk 0:03:00.2]} 10... Ne4 {[%clk 0:02:44.9]} 11. Qb3
{[%clk 0:03:00.3]} 11... Nb6 {[%clk 0:02:32.1]} 12. Bf4 {[%clk 0:02:42.1]} 12...
Nxc3 {[%clk 0:01:59.1]} 13. bxc3 {[%clk 0:02:41.1]} 13... Qd5 {[%clk 0:01:57.6]}
14. Nd2 {[%clk 0:02:35.2]} 14... Qa5 {[%clk 0:01:53.9]} 15. a4 {[%clk
0:02:16.6]} 15... e5 {[%clk 0:01:37.3]} 16. Bxe5 {[%clk 0:02:08.6]} 16... Bxe5
{[%clk 0:01:37.3]} 17. dxe5 {[%clk 0:02:09.5]} 17... Qxe5 {[%clk 0:01:37.6]} 18.
a5 {[%clk 0:02:09.2]} 18... Nd5 {[%clk 0:01:04.2]} 19. e4 {[%clk 0:02:00.2]}
19... Qxc3 {[%clk 0:00:37.5]} 20. Qxc3 {[%clk 0:01:57.2]} 20... Nxc3 {[%clk
0:00:38.4]} 21. exf5 {[%clk 0:01:57.9]} 21... gxf5 {[%clk 0:00:36.9]} 22. a6
{[%clk 0:01:54.6]} 22... bxa6 {[%clk 0:00:35.3]} 23. Bxc6 {[%clk 0:01:54.8]}
23... Rad8 {[%clk 0:00:33.4]} 24. Nf3 {[%clk 0:01:41.8]} 24... Rd6 {[%clk
0:00:31.4]} 25. Rxa6 {[%clk 0:01:40.8]} 25... Rc8 {[%clk 0:00:25.5]} 26. Bb7
{[%clk 0:01:40.7]} 26... Rxa6 {[%clk 0:00:21.3]} 27. Bxc8 {[%clk 0:01:39.8]}
27... Ra5 {[%clk 0:00:16.4]} 28. Re5 {[%clk 0:01:35.2]} 28... Rxe5 {[%clk
0:00:11]} 29. Nxe5 {[%clk 0:01:36.1]} 29... f4 {[%clk 0:00:11.7]} 30. gxf4
{[%clk 0:01:32.8]} 30... Ne2+ {[%clk 0:00:11.6]} 31. Kg2 {[%clk 0:01:32]} 31...
Nxf4+ {[%clk 0:00:12.5]} 32. Kf3 {[%clk 0:01:32.4]} 32... Nd5 {[%clk 0:00:12.2]}
33. Ba6 {[%clk 0:01:29.5]} 33... Nb4 {[%clk 0:00:12.1]} 34. Bc4 {[%clk
0:01:29.7]} 34... Kg7 {[%clk 0:00:12.7]} 35. Nxf7 {[%clk 0:01:29.3]} 35... a5
{[%clk 0:00:12.6]} 36. Ne5 {[%clk 0:01:24.8]} 36... a4 {[%clk 0:00:11.1]} 37.
Nd3 {[%clk 0:01:25.2]} 37... Nc2 {[%clk 0:00:09.5]} 38. Ke4 {[%clk 0:01:21.4]}
38... Kf6 {[%clk 0:00:09.2]} 39. f4 {[%clk 0:01:20.6]} 39... h6 {[%clk
0:00:08.7]} 40. h4 {[%clk 0:01:15.3]} 40... Na3 {[%clk 0:00:08.9]} 41. Kd4
{[%clk 0:01:08.4]} 41... Nc2+ {[%clk 0:00:08.7]} 42. Ke4 {[%clk 0:01:03.6]}
42... Na3 {[%clk 0:00:08.6]} 43. Kd4 {[%clk 0:00:55.6]} 43... Nc2+ {[%clk
0:00:08.4]} 44. Kc3 {[%clk 0:00:56.1]} 44... Ne3 {[%clk 0:00:09.1]} 45. Ba2
{[%clk 0:00:41.6]} 45... Ng2 {[%clk 0:00:08.8]} 46. h5 {[%clk 0:00:40.1]} 46...
Kf5 {[%clk 0:00:09.3]} 47. Bf7 {[%clk 0:00:08.2]} 47... Nxf4 {[%clk 0:00:08.8]}
48. Nf2 {[%clk 0:00:06.6]} 48... Kg5 {[%clk 0:00:07.8]} 49. Ne4+ {[%clk
0:00:06.7]} 49... Kf5 {[%clk 0:00:08.3]} 50. Nd6+ {[%clk 0:00:04.7]} 50... Kg5
{[%clk 0:00:08.4]} 51. Kb4 {[%clk 0:00:04.7]} 51... Nxh5 {[%clk 0:00:07.9]} 52.
Ne4+ {[%clk 0:00:05]} 52... Kf4 {[%clk 0:00:08.5]} 53. Nc3 {[%clk 0:00:03.8]}
53... Ng3 {[%clk 0:00:08.5]} 54. Kxa4 {[%clk 0:00:03.8]} 54... h5 {[%clk
0:00:09.1]} 55. Bxh5 {[%clk 0:00:02.2]} 55... Nxh5 {[%clk 0:00:10]} 1/2-1/2

[Event "Late-Titled-Tuesday-Blitz-August-29-2023"]
[Site "Chess.com"]
[Date "2023.08.29"]
[Round "6"]
[White "Mesa_1"]
[Black "19912131712118"]
[Result "1/2-1/2"]
[WhiteElo "2557"]
[BlackElo "2417"]
[TimeControl "180+1"]
[EndTime "15:06:11 PDT"]
[Termination "Game drawn by stalemate"]

1. e4 {[%clk 0:03:00.9]} 1... c5 {[%clk 0:02:57]} 2. Nc3 {[%clk 0:02:47.4]} 2...
Nc6 {[%clk 0:02:46.9]} 3. Nf3 {[%clk 0:02:48.3]} 3... e6 {[%clk 0:02:46.7]} 4.
d4 {[%clk 0:02:48.6]} 4... cxd4 {[%clk 0:02:47.6]} 5. Nxd4 {[%clk 0:02:49.1]}
5... Qc7 {[%clk 0:02:43.5]} 6. a3 {[%clk 0:02:44.4]} 6... a6 {[%clk 0:02:40.1]}
7. Nxc6 {[%clk 0:02:43.1]} 7... bxc6 {[%clk 0:02:39.6]} 8. Qf3 {[%clk
0:02:41.5]} 8... d5 {[%clk 0:02:39.2]} 9. Qg3 {[%clk 0:02:41.1]} 9... Qxg3
{[%clk 0:02:38.1]} 10. hxg3 {[%clk 0:02:42]} 10... Nf6 {[%clk 0:02:37.8]} 11.
Bd3 {[%clk 0:02:40.3]} 11... Be7 {[%clk 0:02:30.4]} 12. Bf4 {[%clk 0:02:34.1]}
12... Bb7 {[%clk 0:02:20.3]} 13. O-O-O {[%clk 0:02:25.4]} 13... Nd7 {[%clk
0:02:19.5]} 14. g4 {[%clk 0:02:04.2]} 14... e5 {[%clk 0:02:17.4]} 15. Bd2 {[%clk
0:02:00.6]} 15... d4 {[%clk 0:02:17.5]} 16. Na4 {[%clk 0:01:56.5]} 16... c5
{[%clk 0:02:13.6]} 17. b3 {[%clk 0:01:52.5]} 17... c4 {[%clk 0:02:13.7]} 18.
Bxc4 {[%clk 0:01:45.7]} 18... Bxa3+ {[%clk 0:02:12.6]} 19. Kb1 {[%clk
0:01:46.3]} 19... Bxe4 {[%clk 0:02:08.9]} 20. f3 {[%clk 0:01:41]} 20... Bc6
{[%clk 0:02:08.2]} 21. Ka2 {[%clk 0:01:38.4]} 21... Bd6 {[%clk 0:02:04.6]} 22.
Rde1 {[%clk 0:01:30.2]} 22... O-O {[%clk 0:02:04]} 23. Bd3 {[%clk 0:01:26.8]}
23... g6 {[%clk 0:02:03.2]} 24. Rh6 {[%clk 0:01:24.8]} 24... Kg7 {[%clk
0:02:02.8]} 25. Reh1 {[%clk 0:01:24]} 25... Rh8 {[%clk 0:02:02.6]} 26. R6h4
{[%clk 0:01:16]} 26... Bxa4 {[%clk 0:01:34.9]} 27. bxa4 {[%clk 0:01:16.9]} 27...
Nc5 {[%clk 0:01:35.1]} 28. Bh6+ {[%clk 0:01:15.7]} 28... Kf6 {[%clk 0:01:33.5]}
29. Bc4 {[%clk 0:01:00.6]} 29... g5 {[%clk 0:01:24]} 30. Rh5 {[%clk 0:00:50.3]}
30... Rhg8 {[%clk 0:01:22.7]} 31. g3 {[%clk 0:00:43.8]} 31... Nxa4 {[%clk
0:01:22.1]} 32. Rf1 {[%clk 0:00:32.7]} 32... Nc3+ {[%clk 0:01:21.4]} 33. Ka1
{[%clk 0:00:32.3]} 33... Rab8 {[%clk 0:01:16.9]} 34. f4 {[%clk 0:00:29.1]} 34...
exf4 {[%clk 0:01:02.9]} 35. gxf4 {[%clk 0:00:28.9]} 35... Bxf4 {[%clk
0:00:21.2]} 36. Bxg5+ {[%clk 0:00:21.1]} 36... Rxg5 {[%clk 0:00:21]} 37. Rxf4+
{[%clk 0:00:20.2]} 37... Ke5 {[%clk 0:00:13.9]} 38. Rf1 {[%clk 0:00:17.1]} 38...
Rxh5 {[%clk 0:00:13.2]} 39. gxh5 {[%clk 0:00:18]} 39... Rb4 {[%clk 0:00:13]} 40.
Bb3 {[%clk 0:00:15.7]} 40... f5 {[%clk 0:00:12.4]} 41. h6 {[%clk 0:00:15.8]}
41... Kf6 {[%clk 0:00:11.8]} 42. Bg8 {[%clk 0:00:14.7]} 42... Rb7 {[%clk
0:00:10.7]} 43. Bb3 {[%clk 0:00:13.9]} 43... a5 {[%clk 0:00:10.8]} 44. Bc4
{[%clk 0:00:11.5]} 44... a4 {[%clk 0:00:10.7]} 45. Rg1 {[%clk 0:00:09.8]} 45...
a3 {[%clk 0:00:09.1]} 46. Bb3 {[%clk 0:00:09.7]} 46... Re7 {[%clk 0:00:07.5]}
47. Rf1 {[%clk 0:00:08.5]} 47... Kg6 {[%clk 0:00:07.2]} 48. Rg1+ {[%clk
0:00:06.4]} 48... Kxh6 {[%clk 0:00:05.5]} 49. Bg8 {[%clk 0:00:07.1]} 49... f4
{[%clk 0:00:05.3]} 50. Bxh7 {[%clk 0:00:06.2]} 50... Kxh7 {[%clk 0:00:05.4]} 51.
Rg7+ {[%clk 0:00:05.7]} 51... Rxg7 {[%clk 0:00:04]} 1/2-1/2

[Event "Late-Titled-Tuesday-Blitz-August-29-2023"]
[Site "Chess.com"]
[Date "2023.08.29"]
[Round "6"]
[White "UgarteCesar"]
[Black "effefe"]
[Result "0-1"]
[WhiteElo "2253"]
[BlackElo "2416"]
[TimeControl "180+1"]
[EndTime "15:06:11 PDT"]
[Termination "effefe won on time"]

1. d4 {[%clk 0:03:00.9]} 1... Nf6 {[%clk 0:02:55.7]} 2. Nf3 {[%clk 0:03:00.1]}
2... g6 {[%clk 0:02:55.4]} 3. e3 {[%clk 0:02:58.6]} 3... Bg7 {[%clk 0:02:55.7]}
4. Be2 {[%clk 0:02:58.6]} 4... O-O {[%clk 0:02:56.4]} 5. O-O {[%clk 0:02:58.9]}
5... d6 {[%clk 0:02:56.1]} 6. Nbd2 {[%clk 0:02:59.3]} 6... Nc6 {[%clk
0:02:56.7]} 7. h3 {[%clk 0:02:59.6]} 7... Nd7 {[%clk 0:02:57.3]} 8. c3 {[%clk
0:02:59.3]} 8... e5 {[%clk 0:02:57.4]} 9. dxe5 {[%clk 0:02:59.6]} 9... dxe5
{[%clk 0:02:57.7]} 10. Qc2 {[%clk 0:02:56.2]} 10... f5 {[%clk 0:02:57.3]} 11.
Rd1 {[%clk 0:02:55.3]} 11... Kh8 {[%clk 0:02:57]} 12. b4 {[%clk 0:02:53.3]}
12... h6 {[%clk 0:02:53.8]} 13. Bb2 {[%clk 0:02:52.9]} 13... g5 {[%clk
0:02:53.7]} 14. b5 {[%clk 0:02:44.3]} 14... Ne7 {[%clk 0:02:51.6]} 15. c4 {[%clk
0:02:44]} 15... Ng6 {[%clk 0:02:49]} 16. Nb3 {[%clk 0:02:40.6]} 16... Qe7 {[%clk
0:02:25.5]} 17. a4 {[%clk 0:02:39.7]} 17... Qf7 {[%clk 0:02:19.6]} 18. c5 {[%clk
0:02:32.2]} 18... g4 {[%clk 0:02:13.6]} 19. Bc4 {[%clk 0:02:22.5]} 19... Qf6
{[%clk 0:02:04.5]} 20. hxg4 {[%clk 0:02:16.8]} 20... fxg4 {[%clk 0:02:05.4]} 21.
Nh2 {[%clk 0:02:17.2]} 21... h5 {[%clk 0:02:01.5]} 22. Nf1 {[%clk 0:02:16.4]}
22... h4 {[%clk 0:01:57]} 23. Nh2 {[%clk 0:02:13.6]} 23... Qg5 {[%clk 0:01:47]}
24. f4 {[%clk 0:02:00.1]} 24... exf4 {[%clk 0:01:38.5]} 25. Bxg7+ {[%clk
0:01:58.6]} 25... Kxg7 {[%clk 0:01:37.8]} 26. exf4 {[%clk 0:01:52.3]} 26... Nxf4
{[%clk 0:01:25.1]} 27. Nd4 {[%clk 0:01:29.1]} 27... Nxc5 {[%clk 0:00:55]} 28.
Bf1 {[%clk 0:01:24.1]} 28... Rf7 {[%clk 0:00:33.6]} 29. Rac1 {[%clk 0:01:23.6]}
29... Nce6 {[%clk 0:00:31.5]} 30. Qc3 {[%clk 0:01:20.5]} 30... Nh3+ {[%clk
0:00:17]} 31. Kh1 {[%clk 0:01:02.5]} 31... Nf2+ {[%clk 0:00:17.1]} 32. Kg1
{[%clk 0:01:02.3]} 32... Kh6 {[%clk 0:00:12.3]} 33. Nxe6 {[%clk 0:00:54.8]}
33... Bxe6 {[%clk 0:00:12]} 34. Qd2 {[%clk 0:00:55.2]} 34... Nxd1 {[%clk
0:00:10.2]} 35. Qxd1 {[%clk 0:00:48.8]} 35... Raf8 {[%clk 0:00:09.7]} 36. Be2
{[%clk 0:00:28.5]} 36... Qe3+ {[%clk 0:00:09.6]} 37. Kh1 {[%clk 0:00:25.6]}
37... Qf4 {[%clk 0:00:10.2]} 38. Bxg4 {[%clk 0:00:23.4]} 38... Bxg4 {[%clk
0:00:09.4]} 39. Nxg4+ {[%clk 0:00:23.7]} 39... Kh7 {[%clk 0:00:07.8]} 40. Nh2
{[%clk 0:00:19.4]} 40... Qf5 {[%clk 0:00:04.9]} 41. Nf3 {[%clk 0:00:18.9]} 41...
Qf4 {[%clk 0:00:04.1]} 42. Qc2+ {[%clk 0:00:17]} 42... Kh8 {[%clk 0:00:02.9]}
43. Qg6 {[%clk 0:00:16]} 43... Qf6 {[%clk 0:00:01.9]} 44. Qe4 {[%clk 0:00:12.1]}
44... Rh7 {[%clk 0:00:02.5]} 45. Rc4 {[%clk 0:00:11.2]} 45... Qf5 {[%clk
0:00:02.8]} 46. Qd4+ {[%clk 0:00:10.9]} 46... Qf6 {[%clk 0:00:03.4]} 47. Qg4
{[%clk 0:00:10.2]} 47... h3 {[%clk 0:00:03.8]} 48. Qd4 {[%clk 0:00:04.4]} 48...
hxg2+ {[%clk 0:00:03.9]} 49. Kxg2 {[%clk 0:00:05.3]} 49... Qxd4 {[%clk
0:00:04.2]} 50. Nxd4 {[%clk 0:00:04.8]} 50... Rg7+ {[%clk 0:00:05]} 51. Kh3
{[%clk 0:00:03.3]} 51... Rf6 {[%clk 0:00:05]} 0-1